Workbook

Sheet Restated Sapa
B2: Condensed Income Statement
B3: Amounts in NOK million | C3: Q1 2015 | D3: Q2 2015 | E3: YTD Q2 2015 | F3: Q3 2015 | G3: YTD Q3 2015 | H3: Q4 2015 | I3: YTD Q4 2015 | J3: Q1 2016 | K3: Q2 2016 | L3: YTD Q2 2016 | M3: Q3 2016 | N3: YTD Q3 2016 | O3: Q4 2016 | P3: YTD Q4 2016 | Q3: Q1 2017
B4: Operating revenues | C4: 7541 | D4: 7705 | E4: 15246 | F4: 8381 | G4: 23627 | H4: 9571 | I4: 33198 | J4: 8610 | K4: 9433 | L4: 18043 | M4: 9429 | N4: 27472 | O4: 10286 | P4: 37758 | Q4: 9081
B5: Operating expenses | C5: -6578 | D5: -6643 | E5: -13221 | F5: -7123 | G5: -20344 | H5: -8188 | I5: -28532 | J5: -7514 | K5: -8152 | L5: -15666 | M5: -7961 | N5: -23627 | O5: -8687 | P5: -32314 | Q5: -7893
B6: Depreciation, amortisation and write-downs | C6: =-234-4 -> -238 | D6: =-268-5 -> -273 | E6: =-502-9 -> -511 | F6: =-260-5 -> -265 | G6: =-762-14 -> -776 | H6: =-276-5 -> -281 | I6: =-1038-19 -> -1057 | J6: =-272-7 -> -279 | K6: =-279-6 -> -285 | L6: =-551-13 -> -564 | M6: =-287-3 -> -290 | N6: =-838-16 -> -854 | O6: =-287-5 -> -292 | P6: =-1125-21 -> -1146 | Q6: =-285-3 -> -288
B7: EBIT (adj.) | C7: =SUM(C4:C6) -> 725 | D7: 789 | E7: 1514 | F7: 993 | G7: 2507 | H7: 1102 | I7: 3609 | J7: 817 | K7: 996 | L7: 1813 | M7: 1178 | N7: 2991 | O7: 1307 | P7: 4298 | Q7: 900
B8: Other income and expenses | C8: -117 | D8: -55 | E8: -172 | F8: -96 | G8: -268 | H8: -234 | I8: -502 | J8: -30 | K8: -81 | L8: -111 | M8: -149 | N8: -260 | O8: -122 | P8: -382 | Q8: -87
B9: Operating profit | C9: =SUM(C7:C8) -> 608 | D9: 734 | E9: 1342 | F9: 897 | G9: 2239 | H9: 868 | I9: 3107 | J9: 787 | K9: 915 | L9: 1702 | M9: 1029 | N9: 2731 | O9: 1185 | P9: 3916 | Q9: 813
B10: Profit from associates | C10: 193 | D10: 538 | E10: 731 | F10: 185 | G10: 916 | H10: 72 | I10: 988 | J10: 253 | K10: 123 | L10: 376 | M10: 141 | N10: 517 | O10: -29 | P10: 488 | Q10: 173
B11: Interest, net | C11: -63 | D11: -18 | E11: -81 | F11: -78 | G11: -159 | H11: -33 | I11: -192 | J11: -50 | K11: -47 | L11: -97 | M11: -40 | N11: -137 | O11: -40 | P11: -177 | Q11: -37
B12: Other financial items, net | C12: 12 | D12: 19 | E12: 31 | F12: 11 | G12: 42 | H12: 22 | I12: 64 | J12: 52 | K12: -51 | L12: 1 | M12: 26 | N12: 27 | O12: 38 | P12: 65 | Q12: 34
B13: Profit before taxes | C13: =SUM(C9:C12) -> 750 | D13: 1273 | E13: 2023 | F13: 1015 | G13: 3038 | H13: 929 | I13: 3967 | J13: 1042 | K13: 940 | L13: 1982 | M13: 1156 | N13: 3138 | O13: 1154 | P13: 4292 | Q13: 983
B14: Taxes | C14: -155 | D14: -155 | E14: -310 | F14: -240 | G14: -550 | H14: -172 | I14: -722 | J14: -135 | K14: -200 | L14: -335 | M14: -235 | N14: -570 | O14: -237 | P14: -807 | Q14: -185
B15: Profit for the period for continued operations | C15: =SUM(C13:C14) -> 595 | D15: 1118 | E15: 1713 | F15: 775 | G15: 2488 | H15: 757 | I15: 3245 | J15: 907 | K15: 740 | L15: 1647 | M15: 921 | N15: 2568 | O15: 917 | P15: 3485 | Q15: 798
B16: Gains/profit/loss discontinued operations | C16: 45 | D16: 7 | E16: 52 | F16: 54 | G16: 106 | H16: 0 | I16: 106 | J16: 209 | K16: 319 | L16: 528 | M16: 172 | N16: 700 | O16: 190 | P16: 890 | Q16: 312
B17: Profit/loss for the period | C17: =SUM(C15:C16) -> 640 | D17: 1125 | E17: 1765 | F17: 829 | G17: 2594 | H17: 757 | I17: 3351 | J17: 1116 | K17: 1059 | L17: 2175 | M17: 1093 | N17: 3268 | O17: 1107 | P17: 4375 | Q17: 1110
B18: Profit/loss attributable to non-controlling interests | C18: 11 | D18: 16 | E18: 27 | F18: 19 | G18: 46 | H18: 10 | I18: 56 | J18: 21 | K18: 42 | L18: 63 | M18: 24 | N18: 87 | O18: -5 | P18: 82 | Q18: 15
B19: Profit/loss attributable to owners of the parent | C19: =C17-C18 -> 629 | D19: 1109 | E19: 1738 | F19: 810 | G19: 2548 | H19: 747 | I19: 3295 | J19: 1095 | K19: 1017 | L19: 2112 | M19: 1069 | N19: 3181 | O19: 1112 | P19: 4293 | Q19: 1095
B21: Earnings per share | C21: 0.62 | D21: 1.09 | E21: 1.71 | F21: 0.8 | G21: 2.5 | H21: 0.73 | I21: 3.24 | J21: 1.08 | K21: 1 | L21: 2.07 | M21: 1.05 | N21: 3.12 | O21: 1.09 | P21: 4.22 | Q21: 1.08
B22: Earnings per share (diluted) | C22: 0.62 | D22: 1.09 | E22: 1.71 | F22: 0.8 | G22: 2.5 | H22: 0.73 | I22: 3.24 | J22: 1.08 | K22: 1 | L22: 2.07 | M22: 1.05 | N22: 3.12 | O22: 1.09 | P22: 4.22 | Q22: 1.08
B23: Earnings per share for continuing operations (diluted) | C23: 0.57 | D23: 1.08 | E23: 1.65 | F23: 0.74 | G23: 2.4 | H23: 0.73 | I23: 3.13 | J23: 0.87 | K23: 0.68 | L23: 1.56 | M23: 0.88 | N23: 2.44 | O23: 0.91 | P23: 3.34 | Q23: 0.77
